fUSD/lending_fUSD_20240814
["ID","MTS","AMOUNT","RATE_DAILY","PERIOD"]
[334814869,1723603874417,-500.0,0.00014246,2]
[334814870,1723603874427,-500.0,0.00014246,2]
[334814871,1723603874437,-1172.03,0.00014246,2]
[334814872,1723603874446,-500.0,0.00014246,2]
[334814873,1723603874457,-500.0,0.00014246,2]
[334814874,1723603874467,-500.0,0.00014246,2]
[334814875,1723603874478,-500.0,0.00014246,2]
[334814876,1723603874488,-500.0,0.00014246,2]
[334814877,1723603874497,-1026.14,0.00014246,2]
[334814878,1723603874507,-2558.78,0.00014246,2]
[334814879,1723603874517,-6089.56,0.00014246,2]
[334814880,1723603874526,-500.0,0.00014246,2]
[334814881,1723603874535,-721.59,0.00014246,2]
[334814882,1723603874545,-652.17,0.00014246,2]
[334814883,1723603874554,-500.0,0.00014246,2]
[334814884,1723603874564,-1052.72,0.00014246,2]
[334814885,1723603874574,-500.0,0.00014246,2]
[334814886,1723603874584,-500.0,0.00014246,2]
[334814887,1723603874594,-500.0,0.00014246,2]
[334814888,1723603874819,-1637.63,0.00014246,2]
[334814889,1723603874829,-2262.05,0.00014246,2]
[334814890,1723603874839,-541.96,0.00014246,2]
[334814891,1723603874850,-3044.5,0.00014246,2]
[334814892,1723603874860,-500.0,0.00014246,2]
[334814893,1723603874870,-500.0,0.00014246,2]
[334814894,1723603874880,-4734.54,0.00014246,2]
[334814895,1723603874890,-6651.45,0.00014246,2]
[334814896,1723603874900,-1697.19,0.00014246,2]
[334814897,1723603874910,-500.0,0.00014246,2]
[334814898,1723603874920,-500.0,0.00014246,2]
[334814899,1723603874929,-500.0,0.00014246,2]
[334814900,1723603874939,-2800.16,0.00014246,2]
[334814901,1723603874951,-500.0,0.00014246,2]
[334814902,1723603874961,-1932.52,0.00014246,2]
[334814903,1723603874971,-1562.52,0.00014246,2]
[334814904,1723603874981,-500.0,0.00014246,2]
[334814905,1723603874991,-500.0,0.00014246,2]
[334814906,1723603875001,-3412.59,0.00014246,2]
[334814907,1723603875010,-500.0,0.00014246,2]
[334814908,1723603875020,-1904.81,0.00014246,2]
[334814909,1723603875033,-500.0,0.00014246,2]
[334814910,1723603875043,-3403.14,0.00014246,2]
[334814911,1723603875053,-500.0,0.00014246,2]
[334814912,1723603875062,-6160.63,0.00014246,2]
[334814913,1723603875072,-992.23,0.00014246,2]
[334814914,1723603875082,-557.37,0.00014246,2]
[334814915,1723603875091,-500.0,0.00014246,2]
[334814916,1723603875101,-500.0,0.00014246,2]
[334814917,1723603875112,-1080.99,0.00014246,2]
[334814918,1723603875127,-500.0,0.00014246,2]
[334814919,1723603875137,-500.0,0.00014246,2]
[334814920,1723603875147,-500.0,0.00014246,2]
[334814921,1723603875156,-500.0,0.00014246,2]
[334814922,1723603875168,-3809.18,0.00014246,2]
[334814923,1723603875178,-500.0,0.00014246,2]
[334814924,1723603875187,-519.68,0.00014246,2]
[334814925,1723603875197,-500.0,0.00014246,2]
[334814926,1723603875207,-500.0,0.00014246,2]
[334814927,1723603875217,-500.0,0.00014246,2]
[334814928,1723603875226,-3420.81,0.00014246,2]
[334814929,1723603875236,-2546.25,0.00014246,2]
[334814930,1723603875246,-500.0,0.00014246,2]
[334814931,1723603875256,-500.0,0.00014246,2]
[334814932,1723603875266,-3109.12,0.00014246,2]
[334814933,1723603875276,-610.77,0.00014246,2]
[334814934,1723603875287,-500.0,0.00014246,2]
[334814935,1723603875296,-500.0,0.00014246,2]
[334814936,1723603875306,-352.24500578,0.00014246,2]
[334814937,1723603875315,-2747.79,0.00014246,2]
[334814938,1723603875325,-1627.16,0.00014246,2]
[334814939,1723603875335,-500.0,0.00014246,2]
[334814940,1723603875345,-500.0,0.00014246,2]
[334814941,1723603875355,-500.0,0.00014246,2]
[334814942,1723603875364,-500.0,0.00014246,2]
[334814943,1723603875374,-925.42,0.00014246,2]
[334814944,1723603875384,-1362.27,0.00014246,2]
[334814945,1723603875396,-500.0,0.00014246,2]
[334814946,1723603875406,-737.98,0.00014246,2]
[334814947,1723603875415,-500.0,0.00014246,2]
[334814948,1723603875426,-1014.28,0.00014246,2]
[334814949,1723603875435,-500.0,0.00014246,2]
[334814950,1723603875446,-500.0,0.00014246,2]
[334814951,1723603875455,-1635.4,0.00014246,2]
[334814952,1723603875465,-500.0,0.00014246,2]
[334814953,1723603875474,-500.0,0.00014246,2]
[334814954,1723603875484,-1754.72,0.00014246,2]
[334814955,1723603875494,-500.0,0.00014246,2]
[334814956,1723603875504,-500.0,0.00014246,2]
[334814957,1723603875514,-500.0,0.00014246,2]
[334814958,1723603875523,-500.0,0.00014246,2]
[334814959,1723603875533,-684.39,0.00014246,2]
[334814960,1723603875543,-2042.47,0.00014246,2]
[334814961,1723603875552,-500.0,0.00014246,2]
[334814962,1723603875561,-500.0,0.00014246,2]
[334814963,1723603875571,-2970.97,0.00014246,2]
[334814964,1723603875580,-500.0,0.00014246,2]
[334814965,1723603875589,-500.0,0.00014246,2]
[334814966,1723603875599,-500.0,0.00014246,2]
[334814967,1723603875608,-1135.15,0.00014246,2]
[334814968,1723603875620,-500.0,0.00014246,2]
[334814969,1723603875629,-759.05,0.00014246,2]
[334814970,1723603875639,-578.01,0.00014246,2]
[334814971,1723603875648,-541.34,0.00014246,2]
[334814972,1723603875658,-542.71,0.00014246,2]
[334814973,1723603875668,-4312.18,0.00014246,2]
[334814974,1723603875678,-500.0,0.00014246,2]
[334814975,1723603875687,-500.0,0.00014246,2]
[334814976,1723603875696,-993.05,0.00014246,2]
[334814977,1723603875706,-500.0,0.00014246,2]
[334814978,1723603875716,-500.0,0.00014246,2]
[334814979,1723603875726,-154.05719508,0.00014246,2]
[334814980,1723603875736,-1593.35,0.00014246,2]
[334814981,1723603875746,-500.0,0.00014246,2]
[334814982,1723603875756,-500.0,0.00014246,2]
[334814983,1723603875765,-500.0,0.00014246,2]
[334814984,1723603875775,-500.0,0.00014246,2]
[334814985,1723603875785,-578.58,0.00014246,2]
[334814986,1723603875794,-563.35,0.00014246,2]
[334814987,1723603875804,-151.0,0.00014246,2]
[334814988,1723603875813,-151.0,0.00014246,2]
[334814989,1723603875822,-1809.06,0.00014246,2]
[334814990,1723603875832,-1425.37,0.00014246,2]
[334814991,1723603875841,-500.0,0.00014246,2]
[334814992,1723603875850,-500.0,0.00014246,2]
[334814993,1723603875862,-500.0,0.00014246,2]
[334814994,1723603875872,-561.36,0.00014246,2]
[334814995,1723603875881,-2471.25,0.00014246,2]
[334814996,1723603875891,-1970.05,0.00014246,2]
[334814997,1723603875900,-500.0,0.00014246,2]
[334814998,1723603875910,-500.0,0.00014246,2]
[334814999,1723603875919,-500.0,0.00014246,2]
[334815000,1723603875929,-500.0,0.00014246,2]
[334815001,1723603875938,-500.0,0.00014246,2]
[334815002,1723603875949,-3890.5,0.00014246,2]
[334815003,1723603875961,-500.0,0.00014246,2]
[334815004,1723603875970,-222.52096373,0.00014246,2]
[334815005,1723603875979,-500.0,0.00014246,2]
[334815006,1723603875989,-500.0,0.00014246,2]
[334815007,1723603875999,-1901.09,0.00014246,2]
[334815008,1723603876008,-500.0,0.00014246,2]
[334815009,1723603876017,-504.31553052,0.00014246,2]
[334815010,1723603876027,-2311.16,0.00014246,2]
[334815011,1723603876040,-500.0,0.00014246,2]
[334815012,1723603876050,-500.0,0.00014246,2]
[334815013,1723603876059,-816.06,0.00014246,2]
[334815014,1723603876068,-500.0,0.00014246,2]
[334815015,1723603876077,-500.0,0.00014246,2]
[334815016,1723603876087,-506.49,0.00014246,2]
[334815017,1723603876097,-829.82,0.00014246,2]
[334815018,1723603876107,-3657.2,0.00014246,2]
[334815019,1723603876118,-500.0,0.00014246,2]
[334815020,1723603876127,-500.0,0.00014246,2]
[334815021,1723603876137,-2053.68,0.00014246,2]
[334815022,1723603876146,-500.0,0.00014246,2]
[334815023,1723603876157,-500.0,0.00014246,2]
[334815024,1723603876168,-500.0,0.00014246,2]
[334815025,1723603876178,-500.0,0.00014246,2]
[334815026,1723603876187,-500.0,0.00014246,2]
[334815027,1723603876197,-500.0,0.00014246,2]
[334815028,1723603876206,-500.0,0.00014246,2]
[334815029,1723603876216,-500.0,0.00014246,2]
[334815030,1723603876226,-718.17,0.00014246,2]
[334815031,1723603876236,-645.37,0.00014246,2]
[334815032,1723603876246,-1456.02,0.00014246,2]
[334815033,1723603876255,-2925.6,0.00014246,2]
[334815034,1723603876265,-500.0,0.00014246,2]
[334815035,1723603876274,-500.0,0.00014246,2]
[334815036,1723603876284,-500.0,0.00014246,2]
[334815037,1723603876293,-500.0,0.00014246,2]
[334815038,1723603876303,-500.0,0.00014246,2]
[334815039,1723603876312,-813.54,0.00014246,2]
[334815040,1723603876322,-500.0,0.00014246,2]
[334815041,1723603876331,-500.0,0.00014246,2]
[334815042,1723603876341,-702.46,0.00014246,2]
[334815043,1723603876350,-500.0,0.00014246,2]
[334815044,1723603876359,-500.0,0.00014246,2]
[334815045,1723603876369,-1871.96,0.00014246,2]
[334815046,1723603876379,-500.0,0.00014246,2]
[334815047,1723603876388,-2920.7,0.00014246,2]
[334815048,1723603876398,-1199.21,0.00014246,2]
[334815049,1723603876407,-500.0,0.00014246,2]
[334815050,1723603876417,-839.44,0.00014246,2]
[334815051,1723603876427,-3062.35,0.00014246,2]
[334815052,1723603876437,-500.0,0.00014246,2]
[334815053,1723603876446,-500.0,0.00014246,2]
[334815054,1723603876456,-1954.93,0.00014246,2]
[334815055,1723603876466,-500.0,0.00014246,2]
[334815056,1723603876476,-523.74,0.00014246,2]
[334815057,1723603876486,-500.0,0.00014246,2]
[334815058,1723603876496,-500.0,0.00014246,2]
[334815059,1723603876506,-556.57,0.00014246,2]
[334815060,1723603876516,-500.0,0.00014246,2]
[334815061,1723603876525,-500.0,0.00014246,2]
[334815062,1723603876534,-500.0,0.00014246,2]
[334815063,1723603876544,-686.81,0.00014246,2]
[334815064,1723603876554,-765.71,0.00014246,2]
[334815065,1723603876563,-500.0,0.00014246,2]
[334815066,1723603876573,-500.0,0.00014246,2]
[334815067,1723603876583,-1285.93,0.00014246,2]
[334815068,1723603876592,-1141.42,0.00014246,2]
[334815069,1723603876602,-500.0,0.00014246,2]
[334815070,1723603876612,-500.0,0.00014246,2]
[334815071,1723603876622,-500.0,0.00014246,2]
[334815072,1723603876632,-1795.87,0.00014246,2]
[334815073,1723603876643,-510.77,0.00014246,2]
[334815074,1723603876652,-622.32736958,0.00014246,2]
[334815075,1723603876661,-862.78,0.00014246,2]
[334815076,1723603876671,-500.0,0.00014246,2]
[334815077,1723603876680,-500.0,0.00014246,2]
[334815078,1723603876690,-500.0,0.00014246,2]
[334815079,1723603876699,-500.0,0.00014246,2]
[334815080,1723603876709,-500.0,0.00014246,2]
[334815081,1723603876719,-2686.07,0.00014246,2]
[334815082,1723603876729,-500.0,0.00014246,2]
[334815083,1723603876739,-500.0,0.00014246,2]
[334815084,1723603876748,-614.38,0.00014246,2]
[334815085,1723603876758,-261.82261969,0.00014246,2]
[334815086,1723603876768,-4160.62,0.00014246,2]
[334815087,1723603876777,-500.0,0.00014246,2]
[334815088,1723603876786,-500.0,0.00014246,2]
[334815089,1723603876796,-667.7,0.00014246,2]
[334815090,1723603876805,-500.0,0.00014246,2]
[334815091,1723603876815,-500.0,0.00014246,2]
[334815092,1723603876824,-500.0,0.00014246,2]
[334815093,1723603876834,-500.0,0.00014246,2]
[334815094,1723603876843,-500.0,0.00014246,2]
[334815095,1723603876852,-1879.0,0.00014246,2]
[334815096,1723603876862,-746.14,0.00014246,2]
[334815097,1723603876872,-3343.86,0.00014246,2]
[334815098,1723603876881,-500.0,0.00014246,2]
[334815099,1723603876890,-500.0,0.00014246,2]
[334815100,1723603876900,-500.0,0.00014246,2]
[334815101,1723603876910,-500.0,0.00014246,2]
[334815102,1723603876919,-500.0,0.00014246,2]
[334815103,1723603876929,-590.935569,0.00014246,2]
[334815104,1723603876938,-500.0,0.00014246,2]
[334815105,1723603876950,-500.0,0.00014246,2]
[334815106,1723603876966,-500.0,0.00014246,2]
[334815107,1723603876975,-500.0,0.00014246,2]
[334815108,1723603876985,-500.0,0.00014246,2]
[334815109,1723603876996,-2290.46,0.00014246,2]
[334815110,1723603877006,-4072.54,0.00014246,2]
[334815111,1723603877015,-801.76,0.00014246,2]
[334815112,1723603877025,-500.0,0.00014246,2]
[334815113,1723603877035,-500.0,0.00014246,2]
[334815114,1723603877045,-626.44,0.00014246,2]
[334815115,1723603877054,-1509.4,0.00014246,2]
[334815116,1723603877064,-2014.71,0.00014246,2]
[334815117,1723603877073,-500.0,0.00014246,2]
[334815118,1723603877083,-500.0,0.00014246,2]
[334815119,1723603877092,-500.0,0.00014246,2]
[334815120,1723603877101,-500.0,0.00014246,2]
[334815121,1723603877111,-500.0,0.00014246,2]
[334815122,1723603877121,-500.0,0.00014246,2]
[334815123,1723603877130,-500.0,0.00014246,2]
[334815124,1723603877139,-414.31973083,0.00014246,2]
[334815125,1723603877149,-500.0,0.00014246,2]
[334815126,1723603877158,-500.0,0.00014246,2]
[334815127,1723603877167,-3222.79,0.00014246,2]
[334815128,1723603877177,-1656.17,0.00014246,2]
[334815129,1723603877186,-1749.15,0.00014246,2]
[334815130,1723603877196,-500.0,0.00014246,2]
[334815131,1723603877206,-500.0,0.00014246,2]
[334815132,1723603877215,-500.0,0.00014246,2]
[334815133,1723603877227,-500.0,0.00014246,2]
[334815134,1723603877236,-706.26,0.00014246,2]
[334815135,1723603877246,-500.0,0.00014246,2]
[334815136,1723603877256,-500.0,0.00014246,2]
[334815137,1723603877266,-1609.88,0.00014246,2]
[334815138,1723603877365,-500.0,0.00014246,2]
[334815139,1723603877375,-500.0,0.00014246,2]
[334815140,1723603877384,-5273.3,0.00014246,2]
[334815141,1723603877393,-2545.62,0.00014246,2]
[334815142,1723603877402,-568.81,0.00014246,2]
[334815143,1723603877412,-500.0,0.00014246,2]
[334815144,1723603877421,-500.0,0.00014246,2]
[334815145,1723603877430,-500.0,0.00014246,2]
[334815146,1723603877440,-500.0,0.00014246,2]
[334815147,1723603877449,-500.0,0.00014246,2]
[334815148,1723603877459,-615.8,0.00014246,2]
[334815149,1723603877468,-500.0,0.00014246,2]
[334815150,1723603877477,-500.0,0.00014246,2]
[334815151,1723603877486,-3500.04,0.00014246,2]
[334815152,1723603877499,-500.0,0.00014246,2]
[334815153,1723603877508,-500.0,0.00014246,2]
[334815154,1723603877518,-500.0,0.00014246,2]
[334815155,1723603877527,-500.0,0.00014246,2]
[334815156,1723603877537,-1877.03,0.00014246,2]
[334815157,1723603877546,-500.0,0.00014246,2]
[334815158,1723603877556,-1389.67,0.00014246,2]
[334815159,1723603877566,-500.0,0.00014246,2]
[334815160,1723603877576,-500.0,0.00014246,2]
[334815161,1723603877586,-500.0,0.00014246,2]
[334815162,1723603877595,-150.0,0.00014246,2]
[334815163,1723603877605,-1434.03,0.00014246,2]
[334815164,1723603877615,-500.0,0.00014246,2]
[334815165,1723603877624,-3154.71,0.00014246,2]
[334815166,1723603877633,-623.26,0.00014246,2]
[334815167,1723603877642,-523.16,0.00014246,2]
[334815168,1723603877651,-500.0,0.00014246,2]
[334815169,1723603877661,-500.0,0.00014246,2]
[334815170,1723603877670,-500.0,0.00014246,2]
[334815171,1723603877680,-500.0,0.00014246,2]
[334815172,1723603877689,-500.0,0.00014246,2]
[334815173,1723603877698,-500.0,0.00014246,2]
[334815174,1723603877707,-500.0,0.00014246,2]
[334815175,1723603877717,-500.0,0.00014246,2]
[334815176,1723603877726,-500.0,0.00014246,2]
[334815177,1723603877735,-641.69,0.00014246,2]
[334815178,1723603877744,-500.0,0.00014246,2]
[334815179,1723603877754,-150.0,0.00014246,2]
[334815180,1723603877763,-500.0,0.00014246,2]
[334815181,1723603877772,-500.0,0.00014246,2]
[334815182,1723603877782,-908.77,0.00014246,2]
[334815183,1723603877791,-500.0,0.00014246,2]
[334815184,1723603877800,-500.0,0.00014246,2]
[334815185,1723603877810,-1000.0,0.00014246,2]
[334815186,1723603877820,-500.0,0.00014246,2]
[334815187,1723603877829,-500.0,0.00014246,2]
[334815188,1723603877838,-811.21,0.00014246,2]
[334815189,1723603877848,-500.0,0.00014246,2]
[334815190,1723603877857,-500.0,0.00014246,2]
[334815191,1723603877867,-500.0,0.00014246,2]
[334815192,1723603877877,-500.0,0.00014246,2]
[334815193,1723603877886,-500.0,0.00014246,2]
[334815194,1723603877895,-577.33,0.00014246,2]
[334815195,1723603877904,-500.0,0.00014246,2]
[334815196,1723603877913,-151.0,0.00014246,2]
[334815197,1723603877924,-151.0,0.00014246,2]
[334815198,1723603877935,-500.0,0.00014246,2]
[334815199,1723603877945,-500.0,0.00014246,2]
[334815200,1723603877958,-1761.26,0.00014246,2]
[334815201,1723603877967,-500.0,0.00014246,2]
[334815202,1723603877978,-1716.91,0.00014246,2]
[334815203,1723603877987,-527.5,0.00014246,2]
[334815204,1723603877997,-613.43,0.00014246,2]
[334815205,1723603878006,-1089.5,0.00014246,2]
[334815206,1723603878015,-500.0,0.00014246,2]
[334815207,1723603878025,-728.17,0.00014246,2]
[334815208,1723603878035,-500.0,0.00014246,2]
[334815209,1723603878044,-500.0,0.00014246,2]
[334815210,1723603878053,-500.0,0.00014246,2]
[334815211,1723603878062,-500.0,0.00014246,2]
[334815212,1723603878071,-664.03,0.00014246,2]
[334815213,1723603878081,-500.0,0.00014246,2]
[334815214,1723603878090,-500.0,0.00014246,2]
[334815215,1723603878099,-545.68,0.00014246,2]
[334815216,1723603878109,-1090.52,0.00014246,2]
[334815217,1723603878119,-2011.47,0.00014246,2]
[334815218,1723603878128,-1554.81,0.00014246,2]
[334815219,1723603878137,-549.5455356,0.00014246,2]
[334815220,1723603878147,-500.0,0.00014246,2]
[334815221,1723603878156,-550.26,0.00014246,2]
[334815222,1723603878165,-152.47241704,0.00014246,2]
[334815223,1723603878174,-502.14,0.00014246,2]
[334815224,1723603878184,-563.85,0.00014246,2]
[334815225,1723603878193,-500.0,0.00014246,2]
[334815226,1723603878202,-500.0,0.00014246,2]
[334815227,1723603878212,-921.71,0.00014246,2]
[334815228,1723603878221,-500.0,0.00014246,2]
[334815229,1723603878230,-823.6,0.00014246,2]
[334815230,1723603878239,-500.0,0.00014246,2]
[334815231,1723603878248,-610.78,0.00014246,2]
[334815232,1723603878258,-500.0,0.00014246,2]
[334815233,1723603878267,-1908.57,0.00014246,2]
[334815234,1723603878277,-511.56,0.00014246,2]
[334815235,1723603878287,-834.86,0.00014246,2]
[334815236,1723603878296,-500.0,0.00014246,2]
[334815237,1723603878306,-500.0,0.00014246,2]
[334815238,1723603878316,-500.0,0.00014246,2]
[334815239,1723603878325,-500.0,0.00014246,2]
[334815240,1723603878335,-500.0,0.00014246,2]
[334815241,1723603878344,-500.0,0.00014246,2]
[334815242,1723603878354,-626.84,0.00014246,2]
[334815243,1723603878364,-500.0,0.00014246,2]
[334815244,1723603878374,-1747.03,0.00014246,2]
[334815245,1723603878384,-500.0,0.00014246,2]
[334815246,1723603878394,-1408.06,0.00014246,2]
[334815247,1723603878403,-500.0,0.00014246,2]
[334815248,1723603878413,-754.97,0.00014246,2]
[334815249,1723603878422,-857.47,0.00014246,2]
[334815250,1723603878432,-412.18989212,0.00014246,2]
[334815251,1723603878441,-500.0,0.00014246,2]
[334815252,1723603878451,-500.0,0.00014246,2]
[334815253,1723603878460,-500.0,0.00014246,2]
[334815254,1723603878470,-500.0,0.00014246,2]
[334815255,1723603878479,-500.0,0.00014246,2]
[334815256,1723603878488,-1367.58,0.00014246,2]
[334815257,1723603878498,-681.21,0.00014246,2]
[334815258,1723603878507,-2349.72,0.00014246,2]
[334815259,1723603878517,-1319.2,0.00014246,2]
[334815260,1723603878527,-688.34,0.00014246,2]
[334815261,1723603878537,-500.0,0.00014246,2]
[334815262,1723603878547,-500.0,0.00014246,2]
[334815263,1723603878557,-695.72,0.00014246,2]
[334815264,1723603878566,-895.36,0.00014246,2]
[334815265,1723603878577,-500.0,0.00014246,2]
[334815266,1723603878586,-500.0,0.00014246,2]
[334815267,1723603878595,-683.22,0.00014246,2]
[334815268,1723603878604,-501.71459466,0.00014246,2]
[334815269,1723603878616,-964.08,0.00014246,2]
[334815270,1723603878626,-500.0,0.00014246,2]
[334815271,1723603878635,-500.0,0.00014246,2]
[334815272,1723603878644,-500.0,0.00014246,2]
[334815273,1723603878653,-500.0,0.00014246,2]
[334815274,1723603878662,-500.0,0.00014246,2]
[334815275,1723603878671,-500.0,0.00014246,2]
[334815276,1723603878681,-1380.66,0.00014246,2]
[334815277,1723603878694,-500.0,0.00014246,2]
[334815278,1723603878703,-2027.17,0.00014246,2]
[334815279,1723603878713,-151.0,0.00014246,2]
[334815280,1723603878722,-11342.33,0.00014246,2]
[334815281,1723603878731,-226.675518,0.00014246,2]
[334815282,1723603878741,-500.0,0.00014246,2]
[334815283,1723603878750,-1367.54,0.00014246,2]
[334815284,1723603878759,-500.0,0.00014246,2]
[334815285,1723603878769,-500.0,0.00014246,2]
[334815286,1723603878778,-500.0,0.00014246,2]
[334815287,1723603878788,-1444.2,0.00014246,2]
[334815288,1723603878797,-500.0,0.00014246,2]
[334815289,1723603878807,-500.0,0.00014246,2]
[334815290,1723603878816,-500.0,0.00014246,2]
[334815291,1723603878825,-500.0,0.00014246,2]
[334815292,1723603878834,-4005.49,0.00014246,2]
[334815293,1723603878844,-500.0,0.00014246,2]
[334815294,1723603878853,-8599.7,0.00014246,2]
[334815295,1723603878863,-500.0,0.00014246,2]
[334815296,1723603878882,-3471.08,0.00014246,2]
[334815297,1723603878891,-500.0,0.00014246,2]
[334815298,1723603878900,-500.0,0.00014246,2]
[334815299,1723603878909,-18529.58,0.00014246,2]
[334815300,1723603878918,-500.0,0.00014246,2]
[334815301,1723603878928,-500.0,0.00014246,2]
[334815302,1723603878938,-1467.23,0.00014246,2]
[334815303,1723603878953,-1447.84,0.00014246,2]
[334815304,1723603878963,-500.0,0.00014246,2]
[334815305,1723603878973,-500.0,0.00014246,2]
[334815306,1723603878983,-1090.94,0.00014246,2]
[334815307,1723603878993,-150.0,0.00014246,2]
[334815308,1723603879003,-3340.88,0.00014246,2]
[334815309,1723603879012,-696.39,0.00014246,2]
[334815310,1723603879023,-500.0,0.00014246,2]
[334815311,1723603879032,-500.0,0.00014246,2]
[334815312,1723603879042,-500.0,0.00014246,2]
[334815313,1723603879051,-500.0,0.00014246,2]
[334815314,1723603879060,-500.0,0.00014246,2]
[334815315,1723603879070,-500.0,0.00014246,2]
[334815316,1723603879080,-789.84,0.00014246,2]
[334815317,1723603879089,-500.0,0.00014246,2]
[334815318,1723603879098,-1932.0,0.00014246,2]
[334815319,1723603879107,-4811.5,0.00014246,2]
[334815320,1723603879117,-500.0,0.00014246,2]
[334815321,1723603879126,-16984.73,0.00014246,2]
[334815322,1723603879135,-500.0,0.00014246,2]
[334815323,1723603879144,-1408.21,0.00014246,2]
[334815324,1723603879153,-500.0,0.00014246,2]
[334815325,1723603879163,-500.0,0.00014246,2]
[334815326,1723603879172,-151.11078262,0.00014246,2]
[334815327,1723603879181,-500.0,0.00014246,2]
[334815328,1723603879190,-3491.45,0.00014246,2]
[334815329,1723603879199,-1212.188302,0.00014246,2]
[334815330,1723603879208,-1212.188302,0.00014246,2]
[334815331,1723603879218,-615.57,0.00014246,2]
[334815332,1723603879227,-500.0,0.00014246,2]
[334815333,1723603879236,-500.0,0.00014246,2]
[334815334,1723603879246,-519.35889117,0.00014246,2]
[334815335,1723603879255,-1049.0,0.00014246,2]
[334815336,1723603879265,-1212.188302,0.00014246,2]
[334815337,1723603879274,-1212.188302,0.00014246,2]
[334815338,1723603879284,-1741.08,0.00014246,2]
[334815339,1723603879293,-171.3921284,0.00014246,2]
[334815340,1723603879302,-3462.69,0.00014246,2]
[334815341,1723603879312,-1076.68,0.00014246,2]
[334815342,1723603879322,-760.25,0.00014246,2]
[334815343,1723603879331,-547.29,0.00014246,2]
[334815344,1723603879341,-500.0,0.00014246,2]
[334815345,1723603879350,-500.0,0.00014246,2]
[334815346,1723603879360,-500.0,0.00014246,2]
[334815347,1723603879373,-500.0,0.00014246,2]
[334815348,1723603879387,-1201.41,0.00014246,2]
[334815349,1723603879397,-9705.83,0.00014246,2]
[334815350,1723603879406,-500.0,0.00014246,2]
[334815351,1723603879416,-500.0,0.00014246,2]
[334815352,1723603879426,-500.0,0.00014246,2]
[334815353,1723603879436,-500.0,0.00014246,2]
[334815354,1723603879446,-500.0,0.00014246,2]
[334815355,1723603879455,-500.0,0.00014246,2]
[334815356,1723603879465,-500.0,0.00014246,2]
[334815357,1723603879474,-682.35,0.00014246,2]
[334815358,1723603879483,-500.0,0.00014246,2]
[334815359,1723603879493,-21824.02,0.00014246,2]
[334815360,1723603879502,-500.0,0.00014246,2]
[334815361,1723603879511,-964.16,0.00014246,2]
[334815362,1723603879520,-728.58,0.00014246,2]
[334815363,1723603879529,-2013.72,0.00014246,2]
[334815364,1723603879539,-1369.46,0.00014246,2]
[334815365,1723603879548,-832.56,0.00014246,2]
[334815366,1723603879558,-2899.28,0.00014246,2]
[334815367,1723603879568,-953.43,0.00014246,2]
[334815368,1723603879577,-4067.6,0.00014246,2]